[Event "Titled Tuesday Blitz December 20 Late 2022"]
[White "Kamsky, Gata"]
[Black "Czopor, Maciej"]
[WhiteFideId "2000024"]
[BlackFideId "21805431"]
[WhiteElo "2666"]
[BlackElo "2324"]
[Result "1-0"]
[Round "02"]
[TimeControl "180+1"]
[Date "2022.12.20"]
[WhiteClock "0:01:25"]
[BlackClock "0:00:03"]

1. e4 {[%clk 0:03:00]}  c5 {[%clk 0:02:53]} 2. Nf3 {[%clk 0:03:00]}  Nc6 {[%clk 0:02:51]} 3. d4 {[%clk 0:02:59]}  cxd4 {[%clk 0:02:51]} 4. Nxd4 {[%clk 0:02:59]}  Nf6 {[%clk 0:02:51]} 5. Nc3 {[%clk 0:02:59]}  e6 {[%clk 0:02:51]} 6. Ndb5 {[%clk 0:02:59]}  d6 {[%clk 0:02:50]} 7. Bf4 {[%clk 0:02:59]}  e5 {[%clk 0:02:51]} 8. Bg5 {[%clk 0:03:00]}  a6 {[%clk 0:02:51]} 9. Na3 {[%clk 0:03:00]}  b5 {[%clk 0:02:50]} 10. Nd5 {[%clk 0:03:01]}  Be7 {[%clk 0:02:51]} 11. Bxf6 {[%clk 0:03:01]}  Bxf6 {[%clk 0:02:51]} 12. c4 {[%clk 0:03:00]}  b4 {[%clk 0:02:51]} 13. Nc2 {[%clk 0:03:00]}  O-O {[%clk 0:02:49]} 14. b3 {[%clk 0:02:57]}  Rb8 {[%clk 0:02:46]} 15. Be2 {[%clk 0:02:57]}  Bg5 {[%clk 0:02:44]} 16. Bg4 {[%clk 0:02:53]}  Be6 {[%clk 0:02:41]} 17. O-O {[%clk 0:02:52]}  Qd7 {[%clk 0:02:35]} 18. h3 {[%clk 0:02:51]}  g6 {[%clk 0:02:33]} 19. Bxe6 {[%clk 0:02:41]}  fxe6 {[%clk 0:02:33]} 20. Nde3 {[%clk 0:02:42]}  Bxe3 {[%clk 0:02:22]} 21. Nxe3 {[%clk 0:02:41]}  Nd4 {[%clk 0:02:22]} 22. Nc2 {[%clk 0:02:39]}  Qa7 {[%clk 0:02:16]} 23. Qd3 {[%clk 0:02:38]}  Qc5 {[%clk 0:02:12]} 24. Rad1 {[%clk 0:02:35]}  Nxc2 {[%clk 0:02:12]} 25. Qxc2 {[%clk 0:02:35]}  Rb6 {[%clk 0:02:01]} 26. Rd3 {[%clk 0:02:33]}  Rf4 {[%clk 0:01:56]} 27. Qe2 {[%clk 0:02:30]}  h5 {[%clk 0:01:36]} 28. g3 {[%clk 0:02:28]}  Rf7 {[%clk 0:01:32]} 29. Kg2 {[%clk 0:02:25]}  a5 {[%clk 0:01:30]} 30. Rfd1 {[%clk 0:02:20]}  Kg7 {[%clk 0:01:14]} 31. Rf3 {[%clk 0:02:17]}  Rbb7 {[%clk 0:01:10]} 32. Rfd3 {[%clk 0:02:09]}  Rb6 {[%clk 0:01:10]} 33. R1d2 {[%clk 0:02:08]}  Kh7 {[%clk 0:00:52]} 34. h4 {[%clk 0:02:07]}  Kg7 {[%clk 0:00:52]} 35. Qe3 {[%clk 0:02:05]}  Qc7 {[%clk 0:00:22]} 36. f3 {[%clk 0:01:57]}  Rc6 {[%clk 0:00:14]} 37. Rf2 {[%clk 0:01:55]}  Ra6 {[%clk 0:00:10]} 38. f4 {[%clk 0:01:54]}  exf4 {[%clk 0:00:10]} 39. Rxf4 {[%clk 0:01:54]}  Rxf4 {[%clk 0:00:04]} 40. Qxf4 {[%clk 0:01:53]}  Qf7 {[%clk 0:00:01]} 41. e5 {[%clk 0:01:46]}  Qxf4 {[%clk 0:00:01]} 42. gxf4 {[%clk 0:01:46]}  dxe5 {[%clk 0:00:01]} 43. fxe5 {[%clk 0:01:46]}  a4 {[%clk 0:00:01]} 44. Kf3 {[%clk 0:01:44]}  axb3 {[%clk 0:00:01]} 45. axb3 {[%clk 0:01:44]}  Ra5 {[%clk 0:00:02]} 46. Ke4 {[%clk 0:01:43]}  g5 {[%clk 0:00:02]} 47. hxg5 {[%clk 0:01:42]}  Kg6 {[%clk 0:00:03]} 48. Rd6 {[%clk 0:01:41]}  Kxg5 {[%clk 0:00:03]} 49. Rxe6 {[%clk 0:01:41]}  Ra3 {[%clk 0:00:03]} 50. Re8 {[%clk 0:01:38]}  Rxb3 {[%clk 0:00:04]} 51. Rg8+ {[%clk 0:01:38]}  Kh4 {[%clk 0:00:04]} 52. e6 {[%clk 0:01:38]}  Rb1 {[%clk 0:00:04]} 53. Kd5 {[%clk 0:01:32]}  Rd1+ {[%clk 0:00:04]} 54. Kc5 {[%clk 0:01:30]}  b3 {[%clk 0:00:04]} 55. e7 {[%clk 0:01:28]}  b2 {[%clk 0:00:02]} 56. e8=Q {[%clk 0:01:28]}  b1=Q {[%clk 0:00:02]} 57. Qe7+ {[%clk 0:01:25]}  Kh3 {[%clk 0:00:02]} 58. Qe3+ {[%clk 0:01:25]}  Kh2 {[%clk 0:00:03]} 59. Qg3+ {[%clk 0:01:25]}  Kh1 {[%clk 0:00:03]} 60. Qg2# {[%clk 0:01:25]} 1-0


[Site "https://www.chess.com"]

[Event "Titled Tuesday Blitz December 20 Late 2022"]
[White "Kazakouski, Valery"]
[Black "Winterberg, Lukas"]
[WhiteFideId "13507443"]
[BlackFideId "24622702"]
[WhiteElo "2516"]
[BlackElo "2350"]
[Result "1/2-1/2"]
[Round "02"]
[TimeControl "180+1"]
[Date "2022.12.21"]
[WhiteClock "0:00:08"]
[BlackClock "0:00:05"]

1. Nf3 {[%clk 0:03:00]}  Nf6 {[%clk 0:03:00]} 2. c4 {[%clk 0:03:00]}  e6 {[%clk 0:03:00]} 3. g3 {[%clk 0:03:00]}  d5 {[%clk 0:03:01]} 4. b3 {[%clk 0:03:01]}  Be7 {[%clk 0:03:01]} 5. Bg2 {[%clk 0:03:01]}  O-O {[%clk 0:03:02]} 6. O-O {[%clk 0:03:02]}  c5 {[%clk 0:03:03]} 7. e3 {[%clk 0:03:02]}  d4 {[%clk 0:03:02]} 8. exd4 {[%clk 0:03:02]}  cxd4 {[%clk 0:03:03]} 9. Re1 {[%clk 0:03:02]}  Nc6 {[%clk 0:03:04]} 10. Bb2 {[%clk 0:03:02]}  Ng4 {[%clk 0:03:00]} 11. d3 {[%clk 0:02:53]}  f6 {[%clk 0:03:00]} 12. a3 {[%clk 0:02:53]}  a5 {[%clk 0:02:59]} 13. Qc2 {[%clk 0:02:47]}  e5 {[%clk 0:02:56]} 14. Nbd2 {[%clk 0:02:42]}  Bd7 {[%clk 0:02:54]} 15. c5 {[%clk 0:02:42]}  Nh6 {[%clk 0:02:46]} 16. b4 {[%clk 0:02:41]}  axb4 {[%clk 0:02:43]} 17. axb4 {[%clk 0:02:42]}  Rxa1 {[%clk 0:02:41]} 18. Rxa1 {[%clk 0:02:41]}  Nf7 {[%clk 0:02:25]} 19. Qb3 {[%clk 0:02:37]}  b5 {[%clk 0:02:22]} 20. Ne4 {[%clk 0:02:16]}  Kh8 {[%clk 0:02:18]} 21. h4 {[%clk 0:01:48]}  Qc8 {[%clk 0:02:02]} 22. Bc1 {[%clk 0:01:47]}  Be6 {[%clk 0:02:01]} 23. Qb2 {[%clk 0:01:48]}  h6 {[%clk 0:01:49]} 24. Ned2 {[%clk 0:01:33]}  f5 {[%clk 0:01:48]} 25. Qa3 {[%clk 0:01:32]}  g5 {[%clk 0:01:30]} 26. hxg5 {[%clk 0:01:29]}  hxg5 {[%clk 0:01:31]} 27. Nb3 {[%clk 0:01:29]}  g4 {[%clk 0:01:29]} 28. Nfd2 {[%clk 0:01:27]}  Kg7 {[%clk 0:01:28]} 29. Na5 {[%clk 0:01:26]}  Bd7 {[%clk 0:01:23]} 30. Ndb3 {[%clk 0:01:15]}  Ng5 {[%clk 0:01:22]} 31. Bxg5 {[%clk 0:01:14]}  Bxg5 {[%clk 0:01:22]} 32. Nxc6 {[%clk 0:00:56]}  Bxc6 {[%clk 0:01:23]} 33. Qa7+ {[%clk 0:00:56]}  Rf7 {[%clk 0:01:22]} 34. Qb6 {[%clk 0:00:57]}  Bxg2 {[%clk 0:01:19]} 35. Kxg2 {[%clk 0:00:58]}  f4 {[%clk 0:01:19]} 36. Ra6 {[%clk 0:00:53]}  Qf5 {[%clk 0:01:18]} 37. Ra7 {[%clk 0:00:37]}  f3+ {[%clk 0:00:49]} 38. Kg1 {[%clk 0:00:37]}  Qxd3 {[%clk 0:00:49]} 39. Rxf7+ {[%clk 0:00:37]}  Kxf7 {[%clk 0:00:50]} 40. Qb7+ {[%clk 0:00:37]}  Kg6 {[%clk 0:00:46]} 41. Qc6+ {[%clk 0:00:37]}  Bf6 {[%clk 0:00:31]} 42. Qe8+ {[%clk 0:00:37]}  Kh6 {[%clk 0:00:21]} 43. Qe6 {[%clk 0:00:23]}  Kg5 {[%clk 0:00:21]} 44. Qg8+ {[%clk 0:00:22]}  Qg6 {[%clk 0:00:14]} 45. Qxg6+ {[%clk 0:00:13]}  Kxg6 {[%clk 0:00:15]} 46. c6 {[%clk 0:00:13]}  Bd8 {[%clk 0:00:16]} 47. Nc5 {[%clk 0:00:14]}  Kf5 {[%clk 0:00:15]} 48. Kf1 {[%clk 0:00:13]}  e4 {[%clk 0:00:15]} 49. Ke1 {[%clk 0:00:11]}  Ke5 {[%clk 0:00:16]} 50. Kd2 {[%clk 0:00:07]}  Kd5 {[%clk 0:00:14]} 51. Ke1 {[%clk 0:00:04]}  Bb6 {[%clk 0:00:12]} 52. Nd7 {[%clk 0:00:03]}  Bc7 {[%clk 0:00:10]} 53. Nf6+ {[%clk 0:00:03]}  Kxc6 {[%clk 0:00:09]} 54. Nxe4 {[%clk 0:00:03]}  Kd5 {[%clk 0:00:09]} 55. Nf6+ {[%clk 0:00:03]}  Kc4 {[%clk 0:00:09]} 56. Nxg4 {[%clk 0:00:03]}  Kxb4 {[%clk 0:00:09]} 57. Nh2 {[%clk 0:00:04]}  Kc3 {[%clk 0:00:09]} 58. Nxf3 {[%clk 0:00:04]}  b4 {[%clk 0:00:10]} 59. Kd1 {[%clk 0:00:03]}  b3 {[%clk 0:00:10]} 60. Nd2 {[%clk 0:00:03]}  b2 {[%clk 0:00:10]} 61. Nb1+ {[%clk 0:00:03]}  Kd3 {[%clk 0:00:09]} 62. f4 {[%clk 0:00:02]}  Bd6 {[%clk 0:00:06]} 63. Nd2 {[%clk 0:00:02]}  Bb4 {[%clk 0:00:04]} 64. Nb1 {[%clk 0:00:03]}  Bd6 {[%clk 0:00:04]} 65. Nd2 {[%clk 0:00:03]}  Ke3 {[%clk 0:00:04]} 66. Nc4+ {[%clk 0:00:03]}  Kf3 {[%clk 0:00:03]} 67. Nxb2 {[%clk 0:00:03]}  Kxg3 {[%clk 0:00:03]} 68. f5 {[%clk 0:00:04]}  Kf4 {[%clk 0:00:02]} 69. Ke2 {[%clk 0:00:05]}  Kxf5 {[%clk 0:00:03]} 70. Kd3 {[%clk 0:00:06]}  Ke5 {[%clk 0:00:03]} 71. Nc4+ {[%clk 0:00:07]}  Kd5 {[%clk 0:00:04]} 72. Nxd6 {[%clk 0:00:07]}  Kxd6 {[%clk 0:00:05]} 73. Kxd4 {[%clk 0:00:08]} 1/2-1/2


[Site "https://www.chess.com"]

[Event "Titled Tuesday Blitz December 20 Late 2022"]
[White "Kravtsiv, Martyn"]
[Black "Cilek, Bora"]
[WhiteFideId "14113147"]
[BlackFideId "34502165"]
[WhiteElo "2695"]
[BlackElo "2108"]
[Result "1-0"]
[Round "02"]
[TimeControl "180+1"]
[Date "2022.12.20"]
[WhiteClock "0:02:25"]
[BlackClock "0:01:15"]

1. e4 {[%clk 0:02:58]}  g6 {[%clk 0:02:59]} 2. d4 {[%clk 0:02:57]}  Bg7 {[%clk 0:03:00]} 3. Nc3 {[%clk 0:02:57]}  c6 {[%clk 0:02:59]} 4. f4 {[%clk 0:02:57]}  d5 {[%clk 0:02:59]} 5. e5 {[%clk 0:02:57]}  Nh6 {[%clk 0:03:00]} 6. Nf3 {[%clk 0:02:58]}  Bg4 {[%clk 0:03:00]} 7. Bd3 {[%clk 0:02:58]}  O-O {[%clk 0:02:58]} 8. O-O {[%clk 0:02:53]}  f6 {[%clk 0:02:57]} 9. h3 {[%clk 0:02:52]}  Bxf3 {[%clk 0:02:57]} 10. Rxf3 {[%clk 0:02:53]}  Nd7 {[%clk 0:02:49]} 11. e6 {[%clk 0:02:48]}  Nb6 {[%clk 0:02:46]} 12. g4 {[%clk 0:02:48]}  Kh8 {[%clk 0:01:56]} 13. f5 {[%clk 0:02:45]}  gxf5 {[%clk 0:01:49]} 14. gxf5 {[%clk 0:02:44]}  Ng8 {[%clk 0:01:50]} 15. Qe1 {[%clk 0:02:41]}  Bh6 {[%clk 0:01:48]} 16. Qh4 {[%clk 0:02:41]}  Bxc1 {[%clk 0:01:47]} 17. Rxc1 {[%clk 0:02:40]}  Qd6 {[%clk 0:01:38]} 18. Kh1 {[%clk 0:02:40]}  c5 {[%clk 0:01:29]} 19. Rg1 {[%clk 0:02:38]}  cxd4 {[%clk 0:01:27]} 20. Ne2 {[%clk 0:02:38]}  Nc4 {[%clk 0:01:24]} 21. Nf4 {[%clk 0:02:26]}  Ne5 {[%clk 0:01:24]} 22. Rfg3 {[%clk 0:02:27]}  Qb4 {[%clk 0:01:17]} 23. Rg7 {[%clk 0:02:26]}  h6 {[%clk 0:01:15]} 24. Rxg8+ {[%clk 0:02:25]} 1-0


[Site "https://www.chess.com"]

[Event "Titled Tuesday Blitz December 20 Late 2022"]
[White "Leitao, Rafael"]
[Black "Kalajzic, Ivan"]
[WhiteFideId "2101246"]
[BlackFideId "14506378"]
[WhiteElo "2609"]
[BlackElo "2163"]
[Result "1-0"]
[Round "02"]
[TimeControl "180+1"]
[Date "2022.12.21"]
[WhiteClock "0:00:15"]
[BlackClock "0:00:03"]

1. c4 {[%clk 0:03:00]}  Nc6 {[%clk 0:02:59]} 2. Nc3 {[%clk 0:02:54]}  e5 {[%clk 0:02:59]} 3. Nf3 {[%clk 0:02:54]}  Bc5 {[%clk 0:02:59]} 4. e3 {[%clk 0:02:52]}  d6 {[%clk 0:02:58]} 5. d4 {[%clk 0:02:51]}  exd4 {[%clk 0:02:58]} 6. exd4 {[%clk 0:02:50]}  Bb4 {[%clk 0:02:57]} 7. Be2 {[%clk 0:02:44]}  Bf5 {[%clk 0:02:50]} 8. O-O {[%clk 0:02:44]}  Bxc3 {[%clk 0:02:49]} 9. bxc3 {[%clk 0:02:43]}  Nge7 {[%clk 0:02:49]} 10. d5 {[%clk 0:02:20]}  Ne5 {[%clk 0:02:45]} 11. Nxe5 {[%clk 0:02:19]}  dxe5 {[%clk 0:02:45]} 12. Ba3 {[%clk 0:02:14]}  O-O {[%clk 0:02:42]} 13. Qb3 {[%clk 0:01:57]}  b6 {[%clk 0:02:36]} 14. Rad1 {[%clk 0:01:54]}  Re8 {[%clk 0:02:23]} 15. c5 {[%clk 0:01:54]}  Ng6 {[%clk 0:02:11]} 16. g3 {[%clk 0:01:34]}  Qg5 {[%clk 0:01:56]} 17. Bc1 {[%clk 0:01:21]}  Nf4 {[%clk 0:01:42]} 18. Bxf4 {[%clk 0:00:57]}  exf4 {[%clk 0:01:42]} 19. Bf3 {[%clk 0:00:57]}  Rad8 {[%clk 0:01:23]} 20. Qc4 {[%clk 0:00:56]}  fxg3 {[%clk 0:01:18]} 21. hxg3 {[%clk 0:00:56]}  Qg6 {[%clk 0:01:13]} 22. cxb6 {[%clk 0:00:52]}  cxb6 {[%clk 0:01:09]} 23. Rfe1 {[%clk 0:00:52]}  h5 {[%clk 0:01:05]} 24. Rxe8+ {[%clk 0:00:49]}  Rxe8 {[%clk 0:01:05]} 25. d6 {[%clk 0:00:50]}  Bg4 {[%clk 0:00:56]} 26. Bxg4 {[%clk 0:00:48]}  hxg4 {[%clk 0:00:56]} 27. d7 {[%clk 0:00:49]}  Rd8 {[%clk 0:00:56]} 28. Qc7 {[%clk 0:00:37]}  Qf6 {[%clk 0:00:51]} 29. Re1 {[%clk 0:00:35]}  Kf8 {[%clk 0:00:33]} 30. a4 {[%clk 0:00:29]}  g5 {[%clk 0:00:32]} 31. Re4 {[%clk 0:00:25]}  a6 {[%clk 0:00:14]} 32. Re3 {[%clk 0:00:22]}  b5 {[%clk 0:00:13]} 33. a5 {[%clk 0:00:23]}  b4 {[%clk 0:00:09]} 34. cxb4 {[%clk 0:00:23]}  Qa1+ {[%clk 0:00:09]} 35. Kg2 {[%clk 0:00:22]}  Qf6 {[%clk 0:00:10]} 36. b5 {[%clk 0:00:15]}  axb5 {[%clk 0:00:10]} 37. a6 {[%clk 0:00:16]}  b4 {[%clk 0:00:08]} 38. a7 {[%clk 0:00:16]}  b3 {[%clk 0:00:08]} 39. a8=Q {[%clk 0:00:16]}  Rxa8 {[%clk 0:00:07]} 40. Qc8+ {[%clk 0:00:16]}  Qd8 {[%clk 0:00:06]} 41. Re8+ {[%clk 0:00:16]}  Qxe8 {[%clk 0:00:03]} 42. dxe8=Q+ {[%clk 0:00:15]} 1-0


[Site "https://www.chess.com"]

[Event "Titled Tuesday Blitz December 20 Late 2022"]
[White "Lindholt, Malik"]
[Black "Ibadov, Dashgyn"]
[WhiteFideId "1404490"]
[BlackFideId "24107514"]
[WhiteElo "2007"]
[BlackElo "2208"]
[Result "0-1"]
[Round "02"]
[TimeControl "180+1"]
[Date "2022.12.21"]
[WhiteClock "0:00:02"]
[BlackClock "0:00:45"]

1. e4 {[%clk 0:03:00]}  e6 {[%clk 0:02:56]} 2. d4 {[%clk 0:02:55]}  d5 {[%clk 0:02:57]} 3. Nd2 {[%clk 0:02:55]}  Nf6 {[%clk 0:02:56]} 4. Bd3 {[%clk 0:02:54]}  c5 {[%clk 0:02:54]} 5. c3 {[%clk 0:02:54]}  Nc6 {[%clk 0:02:54]} 6. Ngf3 {[%clk 0:02:53]}  cxd4 {[%clk 0:02:51]} 7. cxd4 {[%clk 0:02:53]}  dxe4 {[%clk 0:02:50]} 8. Nxe4 {[%clk 0:02:52]}  Bb4+ {[%clk 0:02:46]} 9. Nc3 {[%clk 0:02:51]}  O-O {[%clk 0:02:45]} 10. O-O {[%clk 0:02:50]}  b6 {[%clk 0:02:44]} 11. Bc2 {[%clk 0:02:44]}  Bb7 {[%clk 0:02:42]} 12. Qd3 {[%clk 0:02:35]}  Be7 {[%clk 0:02:35]} 13. a3 {[%clk 0:02:30]}  h6 {[%clk 0:02:28]} 14. Bf4 {[%clk 0:02:17]}  Bd6 {[%clk 0:01:58]} 15. Bxd6 {[%clk 0:02:01]}  Qxd6 {[%clk 0:01:59]} 16. Rad1 {[%clk 0:02:01]}  Rad8 {[%clk 0:01:54]} 17. Rfe1 {[%clk 0:01:29]}  Rfe8 {[%clk 0:01:41]} 18. Ne4 {[%clk 0:01:17]}  Nxe4 {[%clk 0:01:39]} 19. Qxe4 {[%clk 0:01:17]}  g6 {[%clk 0:01:34]} 20. Qe3 {[%clk 0:01:03]}  Kg7 {[%clk 0:01:28]} 21. h4 {[%clk 0:01:00]}  Ne7 {[%clk 0:01:26]} 22. h5 {[%clk 0:00:46]}  Nd5 {[%clk 0:01:26]} 23. Qe4 {[%clk 0:00:39]}  f5 {[%clk 0:01:17]} 24. Qe2 {[%clk 0:00:20]}  Nf4 {[%clk 0:01:13]} 25. Qe5+ {[%clk 0:00:19]}  Qxe5 {[%clk 0:01:12]} 26. Rxe5 {[%clk 0:00:18]}  g5 {[%clk 0:00:58]} 27. Bb3 {[%clk 0:00:10]}  Kf6 {[%clk 0:00:54]} 28. Re3 {[%clk 0:00:03]}  Nxg2 {[%clk 0:00:51]} 29. Kxg2 {[%clk 0:00:03]}  g4 {[%clk 0:00:51]} 30. Rde1 {[%clk 0:00:02]}  gxf3+ {[%clk 0:00:47]} 31. Kg3 {[%clk 0:00:02]}  Rg8+ {[%clk 0:00:45]} 0-1


[Site "https://www.chess.com"]

[Event "Titled Tuesday Blitz December 20 Late 2022"]
[White "Makarian, Rudik"]
[Black "Poliakova, Varvara"]
[WhiteFideId "44105681"]
[BlackFideId "13518313"]
[WhiteElo "2440"]
[BlackElo "2075"]
[Result "1-0"]
[Round "02"]
[TimeControl "180+1"]
[Date "2022.12.20"]
[WhiteClock "0:01:12"]
[BlackClock "0:00:26"]

1. d4 {[%clk 0:03:00]}  f5 {[%clk 0:02:58]} 2. Bg5 {[%clk 0:02:56]}  d6 {[%clk 0:02:56]} 3. e3 {[%clk 0:02:54]}  g6 {[%clk 0:02:55]} 4. h4 {[%clk 0:02:54]}  Bg7 {[%clk 0:02:53]} 5. h5 {[%clk 0:02:54]}  h6 {[%clk 0:02:48]} 6. Bf4 {[%clk 0:02:51]}  g5 {[%clk 0:02:48]} 7. Bh2 {[%clk 0:02:51]}  e5 {[%clk 0:02:44]} 8. Nf3 {[%clk 0:02:49]}  e4 {[%clk 0:02:36]} 9. Nfd2 {[%clk 0:02:49]}  Nf6 {[%clk 0:02:36]} 10. c4 {[%clk 0:02:48]}  O-O {[%clk 0:02:35]} 11. Nc3 {[%clk 0:02:49]}  Nc6 {[%clk 0:02:33]} 12. Be2 {[%clk 0:02:49]}  a5 {[%clk 0:02:33]} 13. g4 {[%clk 0:02:45]}  f4 {[%clk 0:02:31]} 14. exf4 {[%clk 0:02:43]}  Nxd4 {[%clk 0:02:25]} 15. f5 {[%clk 0:02:42]}  Qe7 {[%clk 0:02:15]} 16. Rg1 {[%clk 0:02:18]}  e3 {[%clk 0:02:10]} 17. fxe3 {[%clk 0:02:14]}  Qxe3 {[%clk 0:02:11]} 18. Rg3 {[%clk 0:02:13]}  Qe7 {[%clk 0:02:05]} 19. Kf1 {[%clk 0:02:12]}  Nd7 {[%clk 0:02:04]} 20. Nd5 {[%clk 0:02:07]}  Qd8 {[%clk 0:01:49]} 21. Ne4 {[%clk 0:01:59]}  c6 {[%clk 0:01:47]} 22. Ndc3 {[%clk 0:01:58]}  Nc5 {[%clk 0:01:43]} 23. Bg1 {[%clk 0:01:51]}  Be5 {[%clk 0:01:42]} 24. Bxd4 {[%clk 0:01:49]}  Bxg3 {[%clk 0:01:38]} 25. Nxg3 {[%clk 0:01:50]}  Ne6 {[%clk 0:01:34]} 26. Be3 {[%clk 0:01:47]}  Nf4 {[%clk 0:01:33]} 27. Qd2 {[%clk 0:01:47]}  d5 {[%clk 0:01:15]} 28. Bxf4 {[%clk 0:01:44]}  gxf4 {[%clk 0:01:15]} 29. Qxf4 {[%clk 0:01:44]}  Qh4 {[%clk 0:01:06]} 30. cxd5 {[%clk 0:01:43]}  Kh7 {[%clk 0:00:57]} 31. Kg2 {[%clk 0:01:42]}  Rg8 {[%clk 0:00:45]} 32. Bf3 {[%clk 0:01:42]}  Qf6 {[%clk 0:00:44]} 33. Re1 {[%clk 0:01:41]}  Bd7 {[%clk 0:00:43]} 34. Kh3 {[%clk 0:01:34]}  Rae8 {[%clk 0:00:42]} 35. Rxe8 {[%clk 0:01:28]}  Rxe8 {[%clk 0:00:43]} 36. dxc6 {[%clk 0:01:27]}  Bxc6 {[%clk 0:00:41]} 37. Bxc6 {[%clk 0:01:27]}  bxc6 {[%clk 0:00:42]} 38. Nce4 {[%clk 0:01:26]}  Qxb2 {[%clk 0:00:38]} 39. f6 {[%clk 0:01:26]}  Qe5 {[%clk 0:00:26]} 40. Qf2 {[%clk 0:01:13]}  Rf8 {[%clk 0:00:26]} 41. Qa7+ {[%clk 0:01:12]} 1-0


[Site "https://www.chess.com"]

[Event "Titled Tuesday Blitz December 20 Late 2022"]
[White "Marin Masis, Jose Esteban"]
[Black "Vega Gutierrez, Sabrina"]
[WhiteFideId "6508146"]
[BlackFideId "2219026"]
[WhiteElo "1838"]
[BlackElo "2261"]
[Result "0-1"]
[Round "02"]
[TimeControl "180+1"]
[Date "2022.12.21"]
[WhiteClock "0:00:31"]
[BlackClock "0:00:51"]

1. e4 {[%clk 0:03:00]}  c5 {[%clk 0:02:59]} 2. Nf3 {[%clk 0:03:01]}  e6 {[%clk 0:02:59]} 3. d4 {[%clk 0:03:01]}  cxd4 {[%clk 0:03:00]} 4. Nxd4 {[%clk 0:03:02]}  Nf6 {[%clk 0:02:59]} 5. Nc3 {[%clk 0:03:01]}  d6 {[%clk 0:03:00]} 6. Bc4 {[%clk 0:03:01]}  Be7 {[%clk 0:02:58]} 7. O-O {[%clk 0:03:00]}  O-O {[%clk 0:02:58]} 8. Bb3 {[%clk 0:02:52]}  Nc6 {[%clk 0:02:55]} 9. Re1 {[%clk 0:02:52]}  a6 {[%clk 0:02:51]} 10. h3 {[%clk 0:02:51]}  Qc7 {[%clk 0:02:51]} 11. Be3 {[%clk 0:02:46]}  Bd7 {[%clk 0:02:51]} 12. Qd2 {[%clk 0:02:45]}  b5 {[%clk 0:02:46]} 13. a3 {[%clk 0:02:45]}  Rac8 {[%clk 0:02:44]} 14. Rad1 {[%clk 0:02:44]}  Na5 {[%clk 0:02:39]} 15. Ba2 {[%clk 0:02:42]}  Rfd8 {[%clk 0:02:27]} 16. f4 {[%clk 0:02:27]}  Nc4 {[%clk 0:02:11]} 17. Bxc4 {[%clk 0:02:20]}  Qxc4 {[%clk 0:02:12]} 18. Qd3 {[%clk 0:02:14]}  Be8 {[%clk 0:02:05]} 19. f5 {[%clk 0:02:03]}  e5 {[%clk 0:01:57]} 20. Nb3 {[%clk 0:01:53]}  Qxd3 {[%clk 0:01:37]} 21. Rxd3 {[%clk 0:01:47]}  Bc6 {[%clk 0:01:36]} 22. Bb6 {[%clk 0:01:41]}  Rd7 {[%clk 0:01:36]} 23. Nd5 {[%clk 0:01:18]}  Bxd5 {[%clk 0:01:31]} 24. exd5 {[%clk 0:01:17]}  Rxc2 {[%clk 0:01:31]} 25. Rb1 {[%clk 0:01:02]}  Bd8 {[%clk 0:01:28]} 26. Be3 {[%clk 0:00:54]}  a5 {[%clk 0:01:18]} 27. Na1 {[%clk 0:00:39]}  Rc8 {[%clk 0:01:05]} 28. Nb3 {[%clk 0:00:38]}  a4 {[%clk 0:01:04]} 29. Nd2 {[%clk 0:00:38]}  Rdc7 {[%clk 0:01:02]} 30. g4 {[%clk 0:00:35]}  Rc1+ {[%clk 0:01:00]} 31. Rxc1 {[%clk 0:00:34]}  Rxc1+ {[%clk 0:01:01]} 32. Kg2 {[%clk 0:00:35]}  Rc2 {[%clk 0:01:01]} 33. b3 {[%clk 0:00:32]}  axb3 {[%clk 0:00:57]} 34. Rxb3 {[%clk 0:00:32]}  Nxd5 {[%clk 0:00:57]} 35. Kf2 {[%clk 0:00:31]}  Nxe3 {[%clk 0:00:51]} 36. Kxe3 {[%clk 0:00:31]}  Bg5+ {[%clk 0:00:51]} 0-1


[Site "https://www.chess.com"]

[Event "Titled Tuesday Blitz December 20 Late 2022"]
[White "Martinez Alcantara, Jose Eduardo"]
[Black "Rosenberg, Evan S"]
[WhiteFideId "3805662"]
[BlackFideId "2019299"]
[WhiteElo "2707"]
[BlackElo "2407"]
[Result "1-0"]
[Round "02"]
[TimeControl "180+1"]
[Date "2022.12.21"]
[WhiteClock "0:01:43"]
[BlackClock "0:01:32"]

1. e4 {[%clk 0:02:50]}  e5 {[%clk 0:02:59]} 2. Nf3 {[%clk 0:02:50]}  Nc6 {[%clk 0:03:00]} 3. Bb5 {[%clk 0:02:50]}  Nf6 {[%clk 0:03:01]} 4. O-O {[%clk 0:02:50]}  Nxe4 {[%clk 0:03:01]} 5. Re1 {[%clk 0:02:51]}  Nd6 {[%clk 0:03:01]} 6. Nxe5 {[%clk 0:02:52]}  Be7 {[%clk 0:03:01]} 7. Bf1 {[%clk 0:02:52]}  Nxe5 {[%clk 0:03:01]} 8. Rxe5 {[%clk 0:02:52]}  O-O {[%clk 0:03:01]} 9. d4 {[%clk 0:02:53]}  Bf6 {[%clk 0:02:59]} 10. Re1 {[%clk 0:02:53]}  Re8 {[%clk 0:02:59]} 11. c3 {[%clk 0:02:54]}  Rxe1 {[%clk 0:02:59]} 12. Qxe1 {[%clk 0:02:54]}  Qe8 {[%clk 0:02:58]} 13. Qd1 {[%clk 0:02:53]}  Ne4 {[%clk 0:02:57]} 14. Bf4 {[%clk 0:02:52]}  d6 {[%clk 0:02:43]} 15. Qf3 {[%clk 0:02:51]}  Ng5 {[%clk 0:02:40]} 16. Qd3 {[%clk 0:02:43]}  Ne6 {[%clk 0:02:38]} 17. Be3 {[%clk 0:02:41]}  g6 {[%clk 0:02:38]} 18. Nd2 {[%clk 0:02:40]}  Ng7 {[%clk 0:02:39]} 19. Bf4 {[%clk 0:02:36]}  Bf5 {[%clk 0:02:38]} 20. Qf3 {[%clk 0:02:34]}  c6 {[%clk 0:02:37]} 21. Bxd6 {[%clk 0:02:31]}  Qd7 {[%clk 0:02:37]} 22. Bf4 {[%clk 0:02:29]}  Bg4 {[%clk 0:02:37]} 23. Qd3 {[%clk 0:02:29]}  Re8 {[%clk 0:02:31]} 24. Ne4 {[%clk 0:02:27]}  Be7 {[%clk 0:02:24]} 25. Re1 {[%clk 0:02:25]}  Bf5 {[%clk 0:02:22]} 26. Qf3 {[%clk 0:02:15]}  Ne6 {[%clk 0:02:19]} 27. Bd2 {[%clk 0:02:12]}  c5 {[%clk 0:02:09]} 28. d5 {[%clk 0:02:07]}  Bxe4 {[%clk 0:02:01]} 29. Qxe4 {[%clk 0:02:05]}  Ng7 {[%clk 0:01:57]} 30. Qf3 {[%clk 0:01:54]}  b5 {[%clk 0:01:51]} 31. Bf4 {[%clk 0:01:49]}  c4 {[%clk 0:01:51]} 32. b3 {[%clk 0:01:48]}  Bf6 {[%clk 0:01:43]} 33. Rxe8+ {[%clk 0:01:47]}  Qxe8 {[%clk 0:01:44]} 34. bxc4 {[%clk 0:01:47]}  bxc4 {[%clk 0:01:44]} 35. d6 {[%clk 0:01:46]}  Qe1 {[%clk 0:01:41]} 36. Qa8+ {[%clk 0:01:42]}  Qe8 {[%clk 0:01:34]} 37. Qxe8+ {[%clk 0:01:42]}  Nxe8 {[%clk 0:01:34]} 38. Bxc4 {[%clk 0:01:43]}  Bxc3 {[%clk 0:01:32]} 39. d7 {[%clk 0:01:43]} 1-0


[Site "https://www.chess.com"]